bitfinex/quotes_ETHUSD_20250210
["timestamp","ask_amount","ask_price","bid_price","bid_amount"]
[1739213700225,3.72551,2684.2,2683.7,3.72619]
[1739213700431,3.72576,2684.1,2683.6,4.48917]
[1739213700854,3.72576,2684.1,2683.6,4.48919]
[1739213701679,3.72576,2684.1,2683.7,3.72619]
[1739213701864,3.72546,2684.3,2683.7,3.72619]
[1739213702073,3.72551,2684.2,2683.7,3.72619]
[1739213702955,4.52164,2684.4,2683.8,0.03725777]
[1739213703186,3.72565,2684.1,2683.7,3.72612]
[1739213704085,3.72551,2684.2,2683.7,3.72612]
[1739213704301,3.72575,2684.1,2683.6,0.7629]
[1739213704584,3.72575,2684.1,2683.6,4.48913]
[1739213704888,3.72536,2684.3,2683.8,3.72603]
[1739213705427,3.72552,2684.2,2683.8,3.72603]
[1739213705988,3.72552,2684.2,2683.7,3.72616]
[1739213706574,3.72552,2684.2,2683.6,4.48913]
[1739213706891,5.35,2684.8,2683.9,4.47662]
[1739213707045,3.72483,2684.7,2684.2,3.72543]
[1739213707868,9.07468,2684.8,2684.2,3.72541]
[1739213708067,9.07468,2684.8,2684.3,3.7253]
[1739213708382,9.07468,2684.8,2684.3,4.4882]
[1739213708884,5.35,2684.8,2684.3,4.4882]
[1739213709060,3.72481,2684.7,2684.3,0.7629]
[1739213709862,3.72431,2685.1,2684.4,3.72514]
[1739213710099,3.7244,2685.0,2684.5,0.03724596]
[1739213710294,3.72457,2684.9,2684.5,0.03724597]
[1739213710795,3.7244,2685.0,2684.5,0.03724597]
[1739213711009,3.7244,2685.0,2684.5,3.76224597]
[1739213711500,3.7244,2685.0,2684.6,0.7629]
[1739213712279,0.75551611,2685.2,2684.6,4.48783]
[1739213712610,4.47965611,2685.2,2684.7,3.72479]
[1739213712777,3.72426,2685.1,2684.6,4.48784]
[1739213712980,4.47965611,2685.2,2684.6,4.48784]
[1739213712981,4.47965611,2685.2,2684.7,3.72478]
[1739213713508,3.72434,2685.1,2684.6,0.7629]
[1739213714008,3.72434,2685.1,2684.6,4.48782]
[1739213715121,3.24078675,2685.2,2684.6,0.7629]
[1739213715426,3.72529,2684.4,2684.1,5.52969336]
[1739213715590,3.72536,2684.3,2684.1,1.0399]
[1739213715913,3.7251,2684.5,2684.1,1.0399]
[1739213716514,3.7251,2684.5,2684.1,4.76553]
[1739213717379,3.72526,2684.4,2684.1,1.0399]
[1739213717579,3.72535,2684.4,2684.1,1.0399]
[1739213718021,3.7251,2684.5,2684.1,1.0399]
[1739213718965,3.72532,2684.4,2684.1,1.0399]
[1739213719196,3.72537,2684.3,2684.1,1.0399]
[1739213719468,3.72576,2684.1,2683.9,0.7629]
[1739213719799,3.72576,2684.1,2683.7,0.7629]
[1739213720002,3.72588,2684.0,2683.7,0.7629]
[1739213720534,3.7255,2684.2,2683.7,4.48909]
[1739213720905,3.72508,2684.5,2683.7,0.80015507]
[1739213721213,3.72508,2684.5,2684.0,3.72568]
[1739213721737,3.72502,2684.6,2684.1,4.4885]
[1739213721906,3.72503,2684.6,2684.1,4.4885]
[1739213722258,5.35,2684.8,2684.3,3.72527]
[1739213722394,5.35,2684.8,2684.4,4.48805]
[1739213722911,5.35,2684.8,2684.4,0.7629]
[1739213723122,3.72488,2684.7,2684.4,0.7629]
[1739213724362,3.72406,2685.3,2684.5,0.03724725]
[1739213724654,0.8177,2685.7,2685.6,3.72356]
[1739213724809,0.8177,2685.7,2685.1,1.0399]
[1739213725140,3.72363,2685.6,2685.1,1.0399]
[1739213725342,3.7237,2685.5,2685.1,1.0399]
[1739213725548,3.72357,2685.6,2685.1,1.0399]
[1739213725849,3.72372,2685.5,2685.1,1.0399]
[1739213726556,4.54091,2685.9,2685.2,3.72408]
[1739213726756,3.7235,2685.7,2685.1,4.76415]
[1739213727115,3.72336,2685.8,2685.2,3.72407]
[1739213727641,7.44673,2685.8,2685.1,4.76407]
[1739213727830,8.17399865,2685.8,2685.1,4.76407]
[1739213728061,4.45062865,2685.8,2685.1,4.76407]
[1739213728265,3.72336,2685.8,2685.2,3.7241]
[1739213728460,3.72336,2685.8,2685.1,4.76407]
[1739213728792,3.72336,2685.8,2685.1,4.76405]
[1739213729867,3.72336,2685.8,2685.1,1.0399]
[1739213730208,1.56151951,2685.9,2685.1,1.0399]
[1739213730379,3.72365,2685.6,2685.1,1.0399]
[1739213730598,3.72381,2685.5,2685.1,0.7629]
[1739213731260,3.72381,2685.5,2685.2,0.03723704]
[1739213732203,3.72388,2685.4,2685.1,0.7629]
[1739213732501,3.72381,2685.5,2685.1,0.7629]
[1739213733605,3.72351,2685.7,2685.1,0.7629]
[1739213733907,3.72357,2685.6,2685.2,0.03723705]
[1739213734264,3.72357,2685.6,2685.1,0.7629]
[1739213735306,3.72357,2685.6,2685.2,0.03723705]
[1739213735843,3.72379,2685.5,2685.1,0.7629]
[1739213736911,3.7242,2685.2,2685.0,0.277]
[1739213737242,3.72398,2685.3,2685.0,0.277]
[1739213740161,3.72373,2685.5,2685.0,0.277]
[1739213740360,3.72391,2685.4,2685.0,0.277]
[1739213741356,3.72398,2685.3,2685.0,0.277]
[1739213741561,3.72373,2685.5,2685.0,0.277]
[1739213742361,6.20858064,2685.8,2685.0,0.277]
[1739213742562,3.72342,2685.7,2685.0,0.277]
[1739213742863,3.72356,2685.6,2685.1,0.03723718]
[1739213743640,6.20858064,2685.8,2685.0,0.277]
[1739213743833,3.72343,2685.7,2685.2,0.7521]
[1739213744038,3.72331,2685.8,2685.2,0.7521]
[1739213744246,3.72369,2685.6,2685.2,0.7521]
[1739213744449,3.72365,2685.6,2685.2,0.7521]
[1739213744848,7.44728,2685.6,2685.2,0.7521]
[1739213745372,3.72363,2685.6,2685.2,0.7521]
[1739213745658,7.44731,2685.6,2685.2,0.7521]
[1739213745867,3.72376,2685.5,2685.2,0.7521]
[1739213746763,3.72384,2685.4,2685.2,0.7521]
[1739213747272,3.72384,2685.4,2685.0,0.277]
[1739213747273,3.72411,2685.2,2685.0,1.0399]
[1739213747569,3.72384,2685.4,2685.0,1.0399]
[1739213747570,7.44781,2685.4,2685.0,1.0399]
[1739213747730,7.4478,2685.4,2685.0,1.0399]
[1739213747931,7.44777,2685.4,2685.0,1.0399]
[1739213748877,3.72384,2685.4,2685.0,1.0399]
[1739213749024,3.72423,2685.2,2685.0,0.7629]
[1739213749344,3.72425,2685.1,2685.0,0.7629]
[1739213750248,3.72423,2685.2,2685.0,0.7629]
[1739213750249,3.72422,2685.2,2685.0,0.7629]
[1739213750769,7.44787,2685.4,2685.0,0.7629]
[1739213751257,3.72393,2685.4,2685.0,0.7629]
[1739213751575,7.44787,2685.4,2685.0,0.7629]
[1739213751868,3.72393,2685.4,2685.0,0.7629]
[1739213752258,3.72398,2685.3,2685.0,0.7629]
[1739213754433,3.7236,2685.6,2685.0,0.7629]
[1739213754705,3.72405,2685.3,2685.0,0.7629]
[1739213754877,3.72399,2685.3,2685.0,0.7629]
[1739213755687,3.72413,2685.2,2685.0,0.7629]
[1739213756089,3.72425,2685.1,2685.0,0.7629]
[1739213756303,3.7244,2685.0,2684.8,1.0399]
[1739213756896,3.72425,2685.1,2684.8,1.0399]
[1739213757296,3.72413,2685.2,2684.8,1.0399]
[1739213758163,3.72427,2685.1,2684.8,1.0399]
[1739213759079,3.72426,2685.1,2684.8,1.0399]
[1739213759710,3.7239,2685.4,2684.8,1.0399]
[1739213759912,0.78,2685.7,2684.9,0.80013808]
[1739213759913,4.50351,2685.7,2684.9,0.80013808]
[1739213760079,0.78,2685.7,2684.9,0.7629]
[1739213760285,3.72391,2685.4,2684.9,0.7629]
[1739213760978,3.72406,2685.3,2684.9,0.7629]
[1739213761281,3.72391,2685.4,2684.9,0.7629]
[1739213761479,7.44783,2685.4,2684.9,0.7629]
[1739213762113,3.72391,2685.4,2684.9,0.7629]
[1739213764211,3.7238,2685.5,2684.9,0.7629]
[1739213764577,3.72421,2685.2,2684.9,0.7629]
[1739213764805,3.72425,2685.1,2684.7,6.01559336]
[1739213764966,3.72446,2685.0,2684.7,6.01559336]
[1739213765170,3.72458,2684.9,2684.7,6.01559336]
[1739213765412,3.72458,2684.9,2684.6,0.277]
[1739213765413,0.8318,2685.2,2684.2,0.7629]
[1739213765713,0.8318,2685.2,2684.0,0.7629]
[1739213765714,3.72494,2684.6,2684.0,0.7629]
[1739213765874,3.72557,2684.2,2684.0,0.7629]
[1739213766411,7.45005,2684.6,2684.0,0.7629]
[1739213766617,3.72523,2684.4,2684.0,0.7629]
[1739213766974,0.8318,2684.7,2684.0,0.7629]
[1739213767201,3.72498,2684.6,2684.0,0.7629]
[1739213767402,7.45003,2684.6,2684.0,0.7629]
[1739213767711,3.72498,2684.6,2684.0,0.7629]
[1739213768210,3.72481,2684.7,2684.0,0.7629]
[1739213768917,3.72498,2684.6,2684.0,0.7629]
[1739213769120,3.72512,2684.5,2684.0,0.7629]
[1739213769790,3.72523,2684.4,2684.0,0.7629]
[1739213769983,3.72512,2684.5,2684.0,0.7629]
[1739213770583,3.72498,2684.6,2684.0,0.7629]
[1739213770813,3.72543,2684.3,2684.0,0.7629]
[1739213771404,3.72529,2684.4,2684.0,0.7629]
[1739213771604,3.72563,2684.2,2683.8,0.7629]
[1739213772006,3.72571,2684.1,2683.8,0.7629]
[1739213772407,3.72563,2684.2,2683.8,0.7629]
[1739213772603,3.72529,2684.4,2683.9,0.03725505]
[1739213772787,3.72537,2684.3,2683.9,0.03725505]
[1739213773157,3.72537,2684.3,2683.8,0.7629]
[1739213774627,7.45087,2684.3,2683.8,0.7629]
[1739213775000,0.75016314,2684.4,2683.8,0.7629]
[1739213775319,3.72592,2683.9,2683.8,0.7629]
[1739213775926,3.72606,2683.8,2683.7,0.18789886]
[1739213777229,3.72592,2683.9,2683.7,0.18789886]
[1739213777387,7.45194,2683.9,2683.7,0.18789886]
[1739213777585,3.72606,2683.8,2683.7,0.18789886]
[1739213779821,0.76418488,2683.9,2683.7,0.18789886]
[1739213780110,4.55766,2684.0,2683.7,0.18789886]
[1739213780449,3.72601,2683.9,2683.7,0.18789886]
[1739213780830,3.72606,2683.8,2683.7,0.18789886]
[1739213781538,3.72579,2684.0,2683.7,0.18789886]
[1739213781741,3.72579,2684.0,2683.8,0.7629]
[1739213781945,3.72555,2684.2,2683.8,0.7629]
[1739213782106,3.7259,2684.0,2683.8,0.7629]
[1739213782519,7.4518,2684.0,2683.8,0.7629]
[1739213783006,3.7259,2684.0,2683.8,0.7629]
[1739213783203,3.72592,2683.9,2683.8,0.7629]
[1739213783808,7.45177,2684.0,2683.8,0.7629]
[1739213784149,3.72592,2683.9,2683.8,0.7629]
[1739213784839,3.72592,2683.9,2683.7,0.18789886]
[1739213785355,7.45173,2684.0,2683.7,0.18789886]
[1739213785763,4.48628509,2684.3,2683.7,0.18789886]
[1739213785963,6.97155573,2684.3,2683.7,0.18789886]
[1739213786171,3.72606,2683.8,2683.7,0.18789886]
[1739213786350,4.55756,2683.8,2683.7,0.18789886]
[1739213787763,3.72606,2683.8,2683.7,0.18789886]
[1739213788333,3.72593,2683.9,2683.7,0.18789886]
[1739213788629,3.72586,2684.0,2683.7,0.18789886]
[1739213790367,0.8315,2684.2,2683.7,0.18789886]
[1739213790673,3.72606,2683.8,2683.7,0.18789886]
[1739213791437,3.72587,2684.0,2683.7,0.18789886]
[1739213791638,7.45123,2684.2,2683.8,0.7629]
[1739213791994,3.7256,2684.2,2683.8,0.7629]
[1739213793053,3.725,2684.6,2683.8,3.72605]
[1739213793287,3.72532,2684.4,2683.9,0.7629]
[1739213793556,3.72546,2684.3,2683.9,0.7629]
[1739213794198,3.72564,2684.2,2683.9,0.7629]
[1739213794555,3.72561,2684.2,2683.9,0.7629]
[1739213794749,3.72571,2684.1,2683.9,0.7629]
[1739213796480,3.72578,2684.0,2683.7,0.18789886]
[1739213796683,3.72601,2683.9,2683.7,0.95079886]
[1739213796986,7.45164,2684.0,2683.7,0.95079886]
[1739213797184,3.72578,2684.0,2683.7,0.95079886]
[1739213797389,3.72592,2683.9,2683.7,0.95079886]
[1739213798400,3.72578,2684.0,2683.7,0.95079886]
[1739213800703,3.7257,2684.1,2683.7,0.95079886]
[1739213802600,3.7257,2684.1,2683.7,0.98805669]
[1739213802973,3.7257,2684.1,2683.7,0.95079886]
[1739213803503,3.72559,2684.2,2683.8,0.03725785]
[1739213803701,3.72582,2684.0,2683.7,0.95079886]
[1739213804364,7.45122,2684.2,2683.7,0.95079886]
[1739213804564,7.45122,2684.2,2683.8,0.03725612]
[1739213804765,3.7254,2684.3,2683.7,4.67697886]
[1739213805489,7.4511,2684.2,2683.7,0.95079886]
[1739213805770,3.72602,2683.9,2683.7,0.95079886]
[1739213807279,3.72599,2683.9,2683.7,0.95079886]
[1739213809224,7.45202,2683.9,2683.7,0.95079886]
[1739213809431,3.72599,2683.9,2683.7,0.95079886]
[1739213809716,3.72606,2683.8,2683.7,0.18789886]
[1739213813926,3.72589,2684.0,2683.7,0.18789886]
[1739213814700,3.72575,2684.1,2683.7,0.18789886]
[1739213815137,7.45095,2684.3,2683.8,0.80015879]
[1739213815325,3.72547,2684.3,2683.8,0.80015879]
[1739213815528,0.8072,2684.5,2683.8,0.7629]
[1739213815734,3.72558,2684.2,2683.8,0.7629]
[1739213816046,3.72565,2684.1,2683.8,0.7629]
[1739213816338,7.45141,2684.1,2683.8,0.7629]
[1739213816543,3.72565,2684.1,2683.8,0.7629]
[1739213816743,7.45142,2684.1,2683.8,0.7629]
[1739213817036,3.72578,2684.0,2683.8,0.7629]
[1739213818545,3.72565,2684.1,2683.8,0.7629]
[1739213819116,3.72592,2683.9,2683.8,0.7629]
[1739213819518,3.72574,2684.1,2683.8,0.7629]
[1739213819722,3.72574,2684.1,2683.7,0.18789886]
[1739213819913,3.72592,2683.9,2683.7,0.18789886]
[1739213820249,3.72606,2683.8,2683.7,0.18789886]
[1739213820960,3.72606,2683.8,2683.6,0.7629]
[1739213821319,3.72592,2683.9,2683.6,0.7629]
[1739213821537,7.45195,2683.9,2683.6,0.7629]
[1739213821734,3.72606,2683.8,2683.6,0.7629]
[1739213822745,3.72592,2683.9,2683.6,0.7629]
[1739213823228,3.72574,2684.1,2683.6,0.7629]
[1739213823424,0.8044,2684.8,2684.0,0.0075]
[1739213823626,0.8044,2684.8,2684.1,0.7629]
[1739213823934,3.72544,2684.3,2684.0,5.25269336]
[1739213824152,3.7255,2684.2,2684.0,5.25269336]
[1739213824319,3.72544,2684.3,2684.0,5.25269336]
[1739213824522,3.72564,2684.1,2684.0,5.25269336]
[1739213824724,3.72578,2684.0,2683.9,0.7629]
[1739213825473,3.72578,2684.0,2683.7,0.7629]
[1739213825671,3.726,2683.9,2683.7,0.7629]
[1739213826228,3.72566,2684.1,2683.7,0.7629]
[1739213826469,0.8044,2684.4,2683.7,0.7629]
[1739213826470,3.72551,2684.2,2683.7,0.8001579]
[1739213826643,3.72551,2684.2,2683.7,0.7629]
[1739213826840,3.7256,2684.2,2683.7,0.7629]
[1739213827045,3.72567,2684.1,2683.7,0.7629]
[1739213827963,3.72578,2684.0,2683.7,0.7629]
[1739213828129,3.72594,2683.9,2683.7,0.7629]
[1739213828529,3.72606,2683.8,2683.7,0.7629]
[1739213829798,3.72642,2683.6,2683.5,0.7629]
[1739213830498,3.72647,2683.5,2683.4,5.25269336]
[1739213830698,3.7266,2683.5,2683.2,0.7629]
[1739213832187,3.72665,2683.4,2683.2,0.7629]
[1739213834688,3.7266,2683.5,2683.2,0.7629]
[1739213835706,3.72664,2683.4,2683.2,0.7629]
[1739213835999,3.7266,2683.5,2683.2,0.7629]
[1739213838170,3.72629,2683.7,2683.2,4.48977]
[1739213838414,3.72629,2683.7,2683.3,0.03726305]
[1739213838778,3.72645,2683.6,2683.2,0.7629]
[1739213839370,3.7265,2683.5,2683.2,0.7629]
[1739213839617,7.45307,2683.5,2683.2,0.7629]
[1739213839916,3.7265,2683.5,2683.2,0.7629]
[1739213840930,3.72635,2683.6,2683.2,0.7629]
[1739213842177,3.72623,2683.7,2683.2,4.48972]
[1739213842923,3.72635,2683.6,2683.2,0.7629]
[1739213844283,3.72647,2683.5,2683.2,0.7629]
[1739213848212,3.72671,2683.4,2683.2,0.7629]
[1739213848415,3.72647,2683.5,2683.2,0.7629]
[1739213848915,3.72626,2683.7,2683.2,0.80016407]
[1739213849301,3.72626,2683.7,2683.2,0.7629]
[1739213849821,3.72639,2683.6,2683.2,0.7629]
[1739213850024,3.72639,2683.6,2683.3,0.03726338]
[1739213850224,3.72655,2683.5,2683.2,0.7629]
[1739213850427,3.72677,2683.3,2683.1,5.25269336]
[1739213850635,3.72689,2683.2,2683.1,5.25269336]
[1739213852193,0.7916,2683.7,2683.3,3.72668]
[1739213852399,1.52721057,2683.9,2683.3,0.7629]
[1739213852637,3.72636,2683.6,2683.3,0.7629]
[1739213852801,3.72622,2683.7,2683.3,0.7629]
[1739213853911,7.45249,2683.7,2683.3,0.7629]
[1739213854118,3.72622,2683.7,2683.3,0.7629]
[1739213854483,3.72637,2683.6,2683.3,0.7629]
[1739213855287,3.72622,2683.7,2683.3,0.7629]
[1739213859586,3.72622,2683.7,2683.4,0.03726196]
[1739213859730,3.72579,2684.0,2683.5,0.7629]
[1739213860046,0.7916,2684.7,2683.9,0.7629]
[1739213860195,1.55490296,2684.7,2683.9,0.7629]
[1739213860388,0.7916,2684.7,2684.0,0.03725232]
[1739213860630,3.72468,2684.8,2684.2,3.72538]
[1739213860946,3.7247,2684.8,2684.3,3.72528]
[1739213861994,0.7916,2684.9,2684.6,3.72491]
[1739213862309,0.7916,2685.6,2684.8,3.72467]
[1739213862506,4.51522,2685.6,2685.0,3.72435]
[1739213862710,3.72392,2685.4,2684.8,3.72458]
[1739213862908,0.7289946,2685.4,2684.7,0.7629]
[1739213863114,3.72467,2684.8,2684.7,0.7629]
[1739213863299,7.44928,2684.9,2684.4,0.7629]
[1739213863513,3.72464,2684.9,2684.4,0.7629]
[1739213864391,7.44929,2684.9,2684.4,0.7629]
[1739213864596,3.72464,2684.9,2684.4,0.7629]
[1739213864837,4.51589,2685.1,2684.4,0.7629]
[1739213865003,3.72443,2685.0,2684.4,4.48808]
[1739213865206,3.72429,2685.1,2684.5,0.03724391]
[1739213865406,0.7289946,2685.4,2684.7,0.7629]
[1739213865744,4.4529046,2685.4,2684.7,4.48768]
[1739213865954,8.1768446,2685.4,2684.7,4.48768]
[1739213866303,4.4529046,2685.4,2684.8,0.0075]
[1739213866503,4.4529046,2685.4,2684.8,3.72465]
[1739213867009,4.4529046,2685.4,2684.8,7.4492]
[1739213867227,0.7289946,2685.4,2684.9,3.72443]
[1739213867447,0.7289946,2685.4,2684.8,7.44912]
[1739213867629,0.7289946,2685.4,2685.0,3.72436]
[1739213868027,0.7289946,2685.4,2684.9,3.72449]
[1739213868258,0.7289946,2685.4,2684.8,7.46422]
[1739213868557,0.7289946,2685.4,2684.9,4.48734]
[1739213868759,0.7289946,2685.4,2684.9,0.7629]
[1739213868946,0.7289946,2685.4,2684.9,4.48739]
[1739213869425,3.72405,2685.3,2684.9,0.7629]
[1739213869927,0.7289946,2685.4,2684.9,0.7629]
[1739213870345,4.4529346,2685.4,2684.9,0.7629]
[1739213871058,0.7289946,2685.4,2684.9,4.48742]
[1739213871618,3.724,2685.3,2684.9,0.7629]
[1739213874676,0.7289946,2685.4,2684.9,0.7629]
[1739213875078,4.4529246,2685.4,2684.9,0.7629]
[1739213876079,0.7289946,2685.4,2684.9,0.7629]
[1739213876378,3.72401,2685.3,2684.9,0.7629]
[1739213877179,0.7289946,2685.4,2684.9,0.7629]
[1739213877360,4.4528546,2685.4,2684.9,0.7629]
[1739213877980,3.72405,2685.3,2684.9,0.7629]
[1739213878834,4.4528546,2685.4,2684.9,0.7629]
[1739213878835,0.7289946,2685.4,2684.9,0.7629]
[1739213879035,3.72417,2685.2,2684.9,0.7629]
[1739213880298,3.72408,2685.3,2684.9,0.7629]
[1739213880754,3.72397,2685.3,2684.9,0.7629]
[1739213881100,3.72448,2685.0,2684.6,0.7629]
[1739213881267,3.72448,2685.0,2684.7,0.276]
[1739213881590,3.72418,2685.2,2684.7,0.276]
[1739213881765,3.72418,2685.2,2684.7,4.03796321]
[1739213881965,0.7605,2685.3,2684.8,3.72464]
[1739213882393,4.48449,2685.3,2684.8,3.72464]
[1739213882604,3.72452,2685.0,2684.7,0.276]
[1739213882788,3.72416,2685.2,2684.7,4.03804362]
[1739213882990,3.72416,2685.2,2684.7,0.31324362]
[1739213883189,3.72412,2685.2,2684.7,4.0008]
[1739213883422,3.72399,2685.3,2684.8,3.72466]
[1739213883583,3.72399,2685.3,2684.7,4.00071]
[1739213883894,3.72399,2685.3,2684.7,4.0007]
[1739213884788,3.72418,2685.2,2684.7,4.0007]
[1739213884996,4.4529346,2685.4,2684.7,4.0007]
[1739213885217,4.4529346,2685.4,2684.8,4.48757]
[1739213885406,4.4529146,2685.4,2684.8,4.48757]
[1739213885613,3.72399,2685.3,2684.8,4.48757]
[1739213887402,4.4529146,2685.4,2684.8,4.48757]
[1739213887609,4.4529146,2685.4,2684.9,3.76176095]
[1739213888135,3.72404,2685.3,2684.8,4.48754]
[1739213888336,4.4529146,2685.4,2684.8,4.48754]
[1739213888538,4.4529146,2685.4,2684.9,3.76177094]
[1739213888833,3.72392,2685.4,2685.1,0.7629]
[1739213890117,3.72391,2685.4,2685.1,0.7629]
[1739213890439,3.72425,2685.1,2684.8,0.7629]
[1739213890742,7.44808,2685.3,2684.8,4.48756]
[1739213891053,3.72419,2685.2,2684.8,0.7629]
[1739213891355,3.72419,2685.2,2684.8,4.48756]
[1739213891516,3.72384,2685.4,2684.8,0.7629]
[1739213891517,0.7666,2685.3,2684.8,0.7629]
[1739213891850,3.72441,2685.0,2684.8,0.7629]
[1739213892349,3.72408,2685.3,2684.8,4.48751]
[1739213892500,3.72412,2685.2,2684.8,0.7629]
[1739213893152,3.72408,2685.3,2684.8,4.48751]
[1739213893314,3.72385,2685.4,2684.9,7.44894]
[1739213893523,4.45633833,2685.5,2685.0,4.48724]
[1739213893854,3.7239,2685.4,2685.0,0.7629]
[1739213894344,3.72403,2685.3,2685.0,0.7629]
[1739213894527,3.72422,2685.2,2685.0,0.7629]
[1739213896410,3.72422,2685.2,2684.8,6.01559336]
[1739213897129,3.72388,2685.4,2684.8,6.01559336]
[1739213897446,3.72424,2685.2,2684.8,6.01559336]
[1739213897925,0.8183,2685.2,2684.8,9.74020336]
[1739213898100,4.54241,2685.2,2684.8,6.01559336]
[1739213898302,7.44816,2685.3,2684.8,9.74025336]
[1739213898620,3.72408,2685.3,2684.8,9.74025336]
[1739213898817,5.21245833,2685.5,2685.0,3.72427]
[1739213899145,3.72386,2685.4,2684.9,3.72444]
[1739213899303,5.21245833,2685.5,2684.9,3.72444]
[1739213899502,1.48867833,2685.5,2685.0,3.72427]
[1739213899799,3.7239,2685.4,2684.9,3.72453]
[1739213900036,3.7241,2685.3,2684.8,9.74025336]
[1739213900235,5.21244833,2685.5,2684.9,3.7245]
[1739213900503,5.21244833,2685.5,2685.0,3.72434]
[1739213900918,5.21244833,2685.5,2685.1,3.72424]
[1739213901203,0.7561,2685.7,2685.2,0.7629]
[1739213901408,4.47914,2686.0,2685.4,0.015]
[1739213901608,3.72314,2685.9,2685.4,0.015]
[1739213902004,3.72331,2685.8,2685.4,0.015]
[1739213902425,3.72331,2685.8,2685.5,0.7629]
[1739213903411,7.44671,2685.8,2685.5,0.7629]
[1739213903750,3.72331,2685.8,2685.5,0.7629]
[1739213906058,3.72351,2685.7,2685.5,0.7629]
[1739213906754,3.72371,2685.5,2685.3,5.25269336]
[1739213907131,4.47953,2685.7,2685.3,5.25269336]
[1739213907330,8.20306,2685.7,2685.3,5.25269336]
[1739213907631,3.72357,2685.6,2685.3,5.25269336]
[1739213907852,3.72329,2685.8,2685.3,5.25269336]
[1739213908076,3.72348,2685.7,2685.3,5.25269336]
[1739213908420,5.22645883,2685.9,2685.3,5.25269336]
[1739213908743,3.72366,2685.6,2685.3,5.25269336]
[1739213908922,1.50329883,2685.9,2685.3,5.25269336]
[1739213909114,3.72345,2685.7,2685.3,5.25269336]
[1739213909331,3.72366,2685.6,2685.3,5.25269336]
[1739213909948,3.72376,2685.5,2685.3,5.25269336]
[1739213910154,3.72366,2685.6,2685.3,5.25269336]
[1739213911739,7.44672,2685.8,2685.3,5.25269336]
[1739213911913,3.72308,2686.0,2685.5,0.7629]
[1739213912120,3.72315,2685.9,2685.5,0.800132]
[1739213912334,3.72331,2685.8,2685.5,0.7629]
[1739213917577,3.72344,2685.7,2685.5,0.7629]
[1739213917784,3.72356,2685.6,2685.5,0.7629]
[1739213919375,3.72384,2685.4,2685.3,5.25269336]
[1739213919579,3.72371,2685.5,2685.3,5.25269336]
[1739213921265,4.47962,2685.7,2685.3,5.25269336]
[1739213921465,3.72357,2685.6,2685.3,5.25269336]
[1739213921965,3.72358,2685.6,2685.3,5.25269336]
[1739213922955,3.72384,2685.4,2685.3,5.25269336]
[1739213924066,3.72397,2685.3,2685.2,0.276]
[1739213924437,3.72453,2684.9,2684.8,5.25269336]
[1739213924668,4.48049,2685.0,2684.8,5.25269336]
[1739213925180,3.72453,2684.9,2684.8,5.25269336]
[1739213927666,4.48049,2685.0,2684.3,5.25269336]
[1739213927667,0.7561,2685.0,2684.3,5.25269336]
[1739213927882,0.7561,2685.0,2684.4,0.276]
[1739213928066,3.72498,2684.6,2684.4,0.276]
[1739213929078,4.48051,2685.0,2684.4,0.276]
[1739213929388,3.72508,2684.5,2684.3,5.25269336]
[1739213934477,0.7563,2684.8,2684.3,5.25269336]
[1739213934782,4.47859845,2684.9,2684.4,0.015]
[1739213934992,0.75397845,2684.9,2684.6,3.72492]
[1739213935160,0.75397845,2684.9,2684.4,0.015]
[1739213935361,0.75397845,2684.9,2684.5,0.7629]
[1739213935696,4.47856845,2684.9,2684.5,0.7629]
[1739213936384,4.48078,2685.0,2684.5,0.7629]
[1739213937485,3.72466,2684.9,2684.5,0.7629]
[1739213937864,1.50886267,2685.0,2684.5,0.7629]
[1739213938275,1.50886267,2685.0,2684.7,3.7248]
[1739213938458,0.75256267,2685.0,2684.5,0.7629]
[1739213938792,0.75256267,2685.0,2684.6,0.03724516]
[1739213939378,3.72428,2685.1,2684.6,0.03724516]
[1739213939573,3.72428,2685.1,2684.5,0.7629]
[1739213939977,4.46938491,2685.1,2684.5,0.7629]
[1739213940563,3.72439,2685.0,2684.7,0.7629]
[1739213940779,3.72445,2685.0,2684.7,0.7629]
[1739213941275,7.44895,2685.0,2684.7,0.7629]
[1739213941581,3.72456,2684.9,2684.7,0.7629]
[1739213941883,7.44954,2684.8,2684.4,0.7779]
[1739213942074,3.72476,2684.8,2684.4,0.7779]
[1739213943102,0.75882455,2685.1,2684.5,3.76225591]
[1739213943305,0.7913,2685.3,2684.6,0.7629]
[1739213943494,4.5153,2685.3,2684.7,3.76201093]
[1739213943687,4.5151,2685.5,2684.9,4.48736]
[1739213944017,0.7913,2685.7,2685.1,7.44846]
[1739213944217,3.72307,2686.0,2685.3,3.7314]
[1739213944218,4.51453,2685.9,2685.3,3.7314]
[1739213944375,4.47124947,2685.8,2685.3,0.015]
[1739213944574,3.72331,2685.8,2685.3,0.015]
[1739213945080,5.35,2686.4,2685.3,0.015]
[1739213945081,0.7913,2686.2,2685.4,1.0389]
[1739213945281,3.72296,2686.1,2685.4,1.0389]
[1739213945684,0.74093126,2685.9,2685.4,4.76263]
[1739213946211,4.46410126,2685.9,2685.4,1.0389]
[1739213946816,3.72296,2686.1,2685.4,1.0389]
[1739213947019,3.7231,2686.0,2685.4,1.0389]
[1739213947396,3.7231,2686.0,2685.5,0.03723197]
[1739213947920,0.74182593,2686.0,2685.6,0.015]
[1739213948717,4.46484593,2686.0,2685.5,0.015]
[1739213949018,4.46485593,2686.0,2685.5,0.015]
[1739213949418,3.72314,2685.9,2685.5,0.0075]
[1739213950137,4.46485593,2686.0,2685.5,0.0075]
[1739213950339,0.74182593,2686.0,2685.5,0.0075]
[1739213950501,4.46487593,2686.0,2685.5,0.0075]
[1739213950702,3.72323,2685.9,2685.5,0.0075]